bitfinex/quotes_BTCUSD_20260104
["timestamp","ask_amount","ask_price","bid_price","bid_amount"]
[1767511468011,0.05479045,91257.0,91254.0,0.06575046]
[1767511468225,0.05479045,91257.0,91255.0,0.05479151]
[1767511468863,0.000999,91255.0,91254.0,0.06575046]
[1767511468987,0.00093022,91255.0,91254.0,0.06575046]
[1767511469340,0.06574851,91257.0,91254.0,0.06575046]
[1767511470143,0.05478961,91259.0,91256.0,0.06574909]
[1767511470345,0.06574743,91259.0,91256.0,0.06481809]
[1767511470735,0.05478988,91258.0,91256.0,0.06481809]
[1767511471111,0.06574743,91259.0,91256.0,0.05479059]
[1767511471543,0.06574781,91258.0,91255.0,0.0657497]
[1767511472272,0.06574892,91257.0,91254.0,0.05479191]
[1767511472785,0.054791,91256.0,91253.0,0.0657512]
[1767511473322,0.054791,91256.0,91254.0,0.05479204]
[1767511473522,0.01095794,91258.0,91255.0,0.0657493]
[1767511473777,0.06574777,91258.0,91256.0,0.05479086]
[1767511474008,0.05479031,91257.0,91255.0,0.0657493]
[1767511474212,0.05479031,91257.0,91255.0,0.0109583]
[1767511474408,0.05479091,91256.0,91253.0,0.0657511]
[1767511474590,0.05479091,91256.0,91254.0,0.05479198]
[1767511474792,0.00913375,91254.0,91253.0,0.0657511]
[1767511474993,0.00913375,91254.0,91253.0,0.01095854]
[1767511475198,0.05479163,91255.0,91253.0,0.01095854]
[1767511475564,0.05479271,91253.0,91252.0,9.6e-07]
[1767511475813,0.0109583,91255.0,91252.0,0.01095962]
[1767511476070,0.06574883,91257.0,91253.0,0.01095854]
[1767511476270,0.05479174,91255.0,91252.0,0.01095962]
[1767511476469,0.05479174,91255.0,91252.0,9.6e-07]
[1767511476470,0.05479228,91254.0,91252.0,9.6e-07]
[1767511476827,0.01095818,91256.0,91252.0,0.01095866]
[1767511476975,0.01095806,91257.0,91254.0,0.01195742]
[1767511477175,0.01095806,91257.0,91255.0,0.0547915]
[1767511477782,0.06574849,91257.0,91254.0,0.06575042]
[1767511478687,0.06574849,91257.0,91255.0,0.0547914]
[1767511478886,0.00913375,91255.0,91254.0,0.01095842]
[1767511479092,0.00913375,91255.0,91254.0,0.06575053]
[1767511479495,0.0109583,91255.0,91248.0,0.06575476]
[1767511479716,0.05479329,91253.0,91250.0,0.05479405]
[1767511479936,0.0109583,91255.0,91249.0,0.01095902]
[1767511480134,0.05479512,91249.0,91244.0,0.01085808]
[1767511480336,0.07488789,91249.0,91246.0,0.06575612]
[1767511480665,0.01095902,91249.0,91247.0,0.05479617]
[1767511481356,0.06575218,91252.0,91249.0,0.000999]
[1767511481558,0.05479424,91251.0,91249.0,0.000999]
[1767511481742,0.05479424,91251.0,91248.0,0.05479527]
[1767511482542,0.01095866,91252.0,91246.0,0.05479677]
[1767511482713,0.06575469,91249.0,91246.0,0.06575579]
[1767511483120,0.06575469,91249.0,91247.0,0.05479605]
[1767511483121,0.01095902,91249.0,91247.0,0.05479605]
[1767511483341,0.06575429,91249.0,91245.0,0.06575698]
[1767511483551,0.06568543,91249.0,91247.0,0.05479628]
[1767511483757,0.06575386,91250.0,91247.0,0.05479628]
[1767511483933,0.01095878,91251.0,91247.0,0.01095926]
[1767511484328,0.01095878,91251.0,91248.0,0.05479558]
[1767511484329,0.06575313,91251.0,91248.0,0.05479558]
[1767511484772,0.06575313,91251.0,91249.0,0.05479504]
[1767511484974,0.01095878,91251.0,91248.0,0.06575472]
[1767511485150,0.06575282,91251.0,91248.0,0.06575475]
[1767511485534,0.06575282,91251.0,91248.0,0.06575473]
[1767511485741,0.04771615,91251.0,91246.0,0.01095938]
[1767511485947,0.01095866,91252.0,91248.0,0.06575483]
[1767511486150,0.06575212,91252.0,91249.0,0.01095902]
[1767511486349,0.06575212,91252.0,91249.0,0.01300504]
[1767511486548,0.05479349,91252.0,91249.0,0.01095902]
[1767511486780,0.05479349,91252.0,91249.0,0.01031417]
[1767511487082,0.05479396,91251.0,91249.0,0.01031417]
[1767511487284,0.05479396,91251.0,91248.0,0.06575471]
[1767511487497,0.06575274,91251.0,91248.0,0.06575483]
[1767511487834,0.0657522,91252.0,91249.0,0.01095902]
[1767511488039,0.05479396,91251.0,91248.0,0.06575483]
[1767511488239,0.01095878,91251.0,91247.0,0.06575548]
[1767511488660,0.06575375,91251.0,91248.0,0.0547954]
[1767511489080,0.06575198,91252.0,91249.0,0.05479477]
[1767511489288,0.06575198,91252.0,91249.0,0.05479478]
[1767511490197,0.06575243,91253.0,91250.0,0.05479409]
[1767511490419,0.06575243,91253.0,91252.0,0.00079893]
[1767511490716,0.05479334,91252.0,91249.0,0.0657538]
[1767511490878,0.06575243,91253.0,91250.0,0.05479433]
[1767511491278,0.05479337,91252.0,91249.0,0.0657538]
[1767511491481,0.08767101,91254.0,91252.0,0.000799]
[1767511491811,0.06575125,91253.0,91250.0,0.06575317]
[1767511492021,0.06575125,91253.0,91250.0,0.11377234]
[1767511492221,0.08767101,91254.0,91250.0,0.11377234]
[1767511492222,0.03287842,91254.0,91251.0,0.06575221]
[1767511492519,0.06575179,91253.0,91250.0,0.05897807]
[1767511492692,0.05479347,91252.0,91250.0,0.04801917]
[1767511493074,0.05479392,91251.0,91250.0,0.04801917]
[1767511493616,0.05474847,91252.0,91250.0,0.04801917]
[1767511493917,0.05474847,91252.0,91250.0,0.04761917]
[1767511495175,0.05479344,91252.0,91250.0,0.04761917]
[1767511495314,0.06575235,91253.0,91250.0,0.10241347]
[1767511495514,0.05479884,91243.0,91241.0,0.04801917]
[1767511495730,0.01095962,91244.0,91241.0,0.04801917]
[1767511495946,0.05479932,91242.0,91241.0,0.04801917]
[1767511496147,0.05473054,91242.0,91241.0,0.04801917]
[1767511496556,0.05480112,91239.0,91238.0,0.02192]
[1767511496762,0.05480413,91234.0,91233.0,0.000152]
[1767511497018,0.01096058,91236.0,91233.0,0.05495644]
[1767511497218,0.05480361,91235.0,91233.0,0.000152]
[1767511497366,0.05480363,91235.0,91233.0,0.000152]
[1767511497570,0.05480413,91234.0,91233.0,1e-08]
[1767511497804,0.01096106,91232.0,91227.0,0.01096166]
[1767511497978,0.05480722,91229.0,91227.0,9.515e-05]
[1767511498177,0.03282206,91228.0,91226.0,0.01096178]
[1767511498381,0.05480771,91229.0,91226.0,0.05898095]
[1767511498598,0.05480833,91227.0,91226.0,0.04801917]
[1767511498800,0.05480833,91227.0,91224.0,0.04801917]
[1767511499103,0.06576862,91229.0,91225.0,0.06577123]
[1767511499314,0.01096154,91228.0,91225.0,0.06577123]
[1767511499716,0.05480785,91228.0,91225.0,0.06577123]
[1767511499951,0.05480795,91228.0,91225.0,0.06577123]
[1767511500397,0.06576949,91228.0,91224.0,0.06577214]
[1767511500715,0.0109613,91230.0,91227.0,0.06566956]
[1767511500934,0.05480735,91229.0,91226.0,0.06577068]
[1767511501152,0.000999,91227.0,91226.0,0.01096178]
[1767511501325,0.05480673,91230.0,91226.0,0.01096178]
[1767511501713,0.0109607,91235.0,91228.0,0.0548076]
[1767511501927,0.01095998,91241.0,91238.0,0.01096034]
[1767511502131,0.01106721,91252.0,91243.0,0.05906591]
[1767511502336,0.07671503,91251.0,91245.0,0.0109595]
[1767511502685,0.0657544,91249.0,91246.0,0.01095938]
[1767511502929,0.06575719,91245.0,91242.0,0.04810617]
[1767511503140,0.08489093,91245.0,91241.0,0.06575939]
[1767511503306,0.05479822,91244.0,91241.0,0.06575939]
[1767511503453,0.05479822,91244.0,91241.0,0.01095998]
[1767511503658,0.05479822,91244.0,91241.0,0.06575971]
[1767511503988,0.05479822,91244.0,91241.0,0.00996098]
[1767511504245,0.00996098,91241.0,91239.0,0.06576074]
[1767511504421,0.01095974,91243.0,91239.0,0.06576074]
[1767511504604,0.05479809,91245.0,91243.0,0.000999]
[1767511505127,0.06575759,91245.0,91242.0,0.06575888]
[1767511505448,0.06575681,91246.0,91242.0,0.06575903]
[1767511505626,0.0109595,91245.0,91242.0,0.06575885]
[1767511505788,0.06575713,91245.0,91242.0,0.06575885]
[1767511506197,0.01095914,91248.0,91245.0,0.000999]
[1767511506397,0.0490758,91247.0,91244.0,0.06575723]
[1767511506620,0.01095902,91249.0,91243.0,0.01095974]
[1767511506801,0.01095914,91248.0,91245.0,0.06575699]
[1767511507001,0.06575558,91247.0,91243.0,0.06575825]
[1767511507403,0.06003506,91247.0,91243.0,0.06575825]
[1767511507604,0.11483149,91247.0,91244.0,0.05479793]
[1767511507843,0.0657568,91246.0,91243.0,0.01095974]
[1767511508756,0.06003506,91247.0,91244.0,0.01095962]
[1767511508937,0.11483139,91247.0,91244.0,0.06575761]
[1767511509372,0.06003506,91247.0,91244.0,0.06575761]
[1767511509544,0.0490758,91247.0,91244.0,0.01095962]
[1767511509971,0.05479726,91246.0,91243.0,0.0657584]
[1767511510178,0.05479753,91245.0,91243.0,0.04810617]
[1767511510400,0.0657563,91246.0,91241.0,0.06575936]
[1767511510615,0.06575753,91245.0,91241.0,0.06575936]
[1767511510822,0.01095962,91244.0,91241.0,0.06575936]
[1767511511036,0.06575753,91245.0,91242.0,0.05479905]
[1767511511251,0.06575753,91245.0,91242.0,0.05475508]
[1767511511675,0.01095962,91244.0,91241.0,0.06575976]
[1767511511890,0.000999,91241.0,91240.0,0.06576061]
[1767511512302,0.05479883,91243.0,91240.0,0.06576061]
[1767511512711,0.05480252,91237.0,91232.0,0.05480529]
[1767511512939,0.000999,91232.0,91229.0,0.05480657]
[1767511513152,0.0490758,91234.0,91227.0,0.01096166]
[1767511513358,0.01096058,91236.0,91233.0,0.05480453]
[1767511513581,0.06576338,91237.0,91233.0,0.01096094]
[1767511513798,0.06576338,91237.0,91234.0,0.05480404]
[1767511514000,0.06576338,91237.0,91233.0,0.05906711]
[1767511514250,0.06576338,91237.0,90549.0,0.025]
[1767511514251,0.02013274,91233.0,91224.0,0.01096202]
[1767511514461,0.06577081,91226.0,91215.0,0.000152]
[1767511514663,0.01096214,91223.0,91216.0,0.05906915]
[1767511514869,0.01096214,91223.0,91215.0,0.0111151]
[1767511514870,0.0548148,91217.0,91215.0,0.000152]
[1767511515110,0.06577674,91218.0,91215.0,8.04e-06]
[1767511515324,0.05481295,91220.0,91218.0,7.8e-05]
[1767511515784,0.01096274,91218.0,91215.0,8.04e-06]
[1767511515988,8.324e-05,91220.0,91216.0,0.10292111]
[1767511516200,0.01096262,91219.0,91216.0,0.01096298]
[1767511516406,0.01096262,91219.0,91215.0,8.04e-06]
[1767511516407,0.06577648,91218.0,91215.0,8.04e-06]
[1767511517168,0.05481467,91217.0,91215.0,8.04e-06]
[1767511519712,0.0490758,91216.0,91215.0,8.04e-06]
[1767511519912,0.01096407,91207.0,91200.0,0.01096491]
[1767511520118,0.01096407,91207.0,91201.0,0.05482372]
[1767511520327,0.01096407,91207.0,91197.0,0.01111727]
[1767511520328,0.01096431,91205.0,91197.0,0.01111727]
[1767511520538,0.06578687,91204.0,91200.0,0.05482421]
[1767511520743,0.05482315,91203.0,91199.0,0.0590712]
[1767511521115,0.01096491,91200.0,91197.0,0.000152]
[1767511521310,0.01096467,91202.0,91197.0,0.06594358]
[1767511521311,0.01096479,91201.0,91197.0,0.06594358]
[1767511521511,0.06578822,91202.0,91198.0,0.11389689]
[1767511521742,0.01096431,91205.0,91201.0,0.06578831]
[1767511521944,0.06578607,91205.0,91201.0,0.01096479]
[1767511522158,0.06578607,91205.0,91199.0,0.0590712]
[1767511522159,0.06578746,91203.0,91199.0,0.0590712]
[1767511522362,0.06578746,91203.0,91198.0,0.01096515]
[1767511522363,0.06578832,91202.0,91198.0,0.01096515]
[1767511522613,0.06578832,91202.0,91198.0,0.05907132]
[1767511522815,0.06578898,91201.0,91198.0,0.04810617]
[1767511522970,0.01096479,91201.0,91198.0,0.05907132]
[1767511523170,0.01096479,91201.0,91198.0,0.1138969]
[1767511523765,0.06578887,91201.0,91198.0,0.06579073]
[1767511523968,0.06578887,91201.0,91198.0,0.01096515]
[1767511524387,0.05482542,91199.0,91197.0,0.000152]
[1767511524588,0.06522275,91198.0,91195.0,0.03288551]
[1767511524829,0.06522275,91198.0,91195.0,0.08771301]
[1767511525242,0.05482694,91197.0,91195.0,0.00178726]
[1767511525367,0.05482694,91197.0,91191.0,0.05482978]
[1767511525368,0.01096539,91196.0,91193.0,0.01096575]
[1767511525712,0.01096515,91198.0,91196.0,0.01]
[1767511525713,0.06579209,91197.0,91196.0,0.01]
[1767511526075,0.01096527,91197.0,91194.0,0.01096563]
[1767511526290,0.01096503,91199.0,91188.0,0.24128649]
[1767511526291,0.02196,91206.0,91197.0,0.000999]
[1767511526485,0.01096431,91205.0,91201.0,0.04810617]
[1767511526760,0.02196,91206.0,91203.0,0.04810617]
[1767511526974,0.0109631,91215.0,91207.0,0.05907024]
[1767511527108,0.0109631,91215.0,91212.0,0.000999]
[1767511527109,0.05481614,91214.0,91212.0,0.000999]
[1767511527312,0.0109631,91215.0,91212.0,0.000999]
[1767511527519,0.05481614,91214.0,91212.0,0.000999]
[1767511527714,0.06577962,91214.0,91210.0,0.01096371]
[1767511527911,0.0109631,91215.0,91210.0,0.01096371]
[1767511527912,0.01096286,91217.0,91210.0,0.01096371]
[1767511528097,0.05481399,91218.0,91214.0,0.06131946]
[1767511528509,0.05481399,91218.0,91214.0,0.02096322]
[1767511528768,0.06577618,91219.0,91214.0,0.0757791]
[1767511529000,0.06577618,91219.0,91215.0,0.05481537]
[1767511529345,0.01096262,91219.0,91216.0,0.01096298]
[1767511529560,0.01096262,91219.0,91216.0,0.06577771]
[1767511529758,0.01096178,91226.0,91222.0,0.01096226]
[1767511529957,0.06625875,91228.0,91224.0,0.01096202]
[1767511530280,0.06625875,91228.0,91225.0,0.06577143]
[1767511530281,0.00048901,91228.0,91225.0,0.06577143]
[1767511530511,0.00048901,91228.0,91227.0,0.05480833]
[1767511530815,0.00048901,91228.0,91225.0,0.06577143]
[1767511531350,0.01145055,91228.0,91225.0,0.0109619]
[1767511531687,0.06576606,91233.0,91228.0,0.02196054]
[1767511531837,0.06576606,91233.0,91228.0,0.02096154]
[1767511532037,0.05480555,91232.0,91228.0,0.0757688]
[1767511532258,0.02196,91235.0,91229.0,0.01096142]
[1767511532488,0.02196,91235.0,91232.0,0.06576577]
[1767511532800,0.06576254,91238.0,91234.0,0.06576466]
[1767511532801,0.01096034,91238.0,91234.0,0.06576466]
[1767511533008,0.06576079,91240.0,91235.0,0.06576396]
[1767511533150,0.06576299,91237.0,91233.0,0.05480447]
[1767511533521,0.06576299,91237.0,91233.0,0.06476641]
[1767511534776,0.06576298,91237.0,91233.0,0.06476641]
[1767511535247,0.06576363,91236.0,91232.0,0.01096106]
[1767511535447,0.06576363,91236.0,91232.0,0.06576628]
[1767511535593,0.01096058,91236.0,91233.0,0.06576541]
[1767511535946,0.06576298,91237.0,91233.0,0.06576541]
[1767511536559,0.01096022,91239.0,91235.0,0.05480345]
[1767511536705,0.01096022,91239.0,91237.0,0.000999]
[1767511536907,0.06576138,91239.0,91237.0,0.000999]
[1767511537162,0.06576138,91239.0,91235.0,0.06576415]
[1767511537873,0.01096034,91238.0,91235.0,0.0109607]
[1767511538164,0.05480232,91237.0,91235.0,0.0109607]
[1767511538710,0.06576278,91237.0,91233.0,0.06576562]
[1767511539544,0.01096046,91237.0,91234.0,0.06576442]
[1767511539746,0.06576224,91238.0,91235.0,0.05480339]
[1767511540599,0.05480318,91236.0,91233.0,0.01096094]
[1767511540737,0.05480318,91236.0,91233.0,0.06576538]
[1767511541156,0.06576376,91236.0,91233.0,0.01096094]
[1767511541360,0.06576353,91236.0,91233.0,0.06576564]
[1767511541762,0.06576369,91236.0,91233.0,0.06576564]
[1767511542378,0.06576437,91235.0,91232.0,0.06576614]
[1767511542762,0.06576437,91235.0,91231.0,0.06576704]
[1767511543186,0.06576437,91235.0,91232.0,0.05480532]
[1767511543604,0.06576472,91235.0,91231.0,0.06576704]
[1767511544014,0.01096094,91233.0,91226.0,0.01096178]
[1767511544221,0.06576654,91232.0,91229.0,0.08772797]
[1767511544427,0.06576654,91232.0,91229.0,0.01096142]
[1767511545016,0.05480615,91231.0,91228.0,0.06576878]
[1767511545698,0.06576733,91231.0,91228.0,0.01096154]
[1767511545904,0.01096118,91231.0,91228.0,0.06576905]
[1767511546100,0.05480537,91232.0,91231.0,0.000999]
[1767511546288,0.05480598,91231.0,91229.0,0.0657683]
[1767511546489,0.06576643,91232.0,91229.0,0.0657683]
[1767511547166,0.0548064,91231.0,91228.0,0.01096154]
[1767511547325,0.0548064,91231.0,91228.0,0.06576916]
[1767511547729,0.0538074,91231.0,91228.0,0.06576916]
[1767511548386,0.05480533,91232.0,91231.0,0.01]
[1767511548596,0.05480533,91232.0,91229.0,0.01096142]
[1767511549114,0.06576639,91232.0,91229.0,0.06576811]
[1767511549898,0.0548061,91231.0,91228.0,0.05480727]
[1767511550414,0.05480655,91230.0,91228.0,0.05480727]
[1767511550538,0.06576785,91230.0,91227.0,0.05480815]
[1767511550749,0.06576785,91230.0,91217.0,0.21925558]
[1767511550750,0.05618719,91226.0,91220.0,0.0109625]
[1767511551106,0.0657712,91226.0,91220.0,0.0109625]
[1767511551306,0.0657712,91226.0,91223.0,0.05481072]
[1767511551456,0.0109619,91225.0,91222.0,0.01096226]
[1767511552101,0.0109619,91225.0,91223.0,0.05481063]
[1767511552859,0.05480957,91225.0,91222.0,0.06577304]
[1767511553058,0.06577084,91226.0,91223.0,0.0548107]
[1767511553675,0.06576869,91230.0,91226.0,0.0208178]
[1767511553921,0.01096142,91229.0,91226.0,0.0208178]
[1767511554113,0.0657688,91229.0,91226.0,0.07562659]
[1767511554779,0.05480779,91228.0,91226.0,0.00985602]
[1767511555818,0.06576868,91229.0,91225.0,0.06577093]
[1767511556044,0.05480779,91228.0,91225.0,0.06577093]
[1767511556501,0.06576868,91229.0,91226.0,0.05480859]
[1767511556701,0.06576868,91229.0,91225.0,0.06577093]
[1767511557344,0.000999,91225.0,91224.0,0.01096202]
[1767511557756,0.05480908,91226.0,91224.0,0.01096202]
[1767511558483,0.05480897,91226.0,91223.0,0.06577237]
[1767511559784,0.01096178,91226.0,91224.0,0.05480954]
[1767511560089,0.06577078,91226.0,91224.0,0.05480954]
[1767511560353,0.06577078,91226.0,91223.0,0.06577237]
[1767511560930,0.06577078,91226.0,91223.0,0.04866014]
[1767511561080,0.23019284,91228.0,91223.0,0.04866014]
[1767511561081,0.01096154,91228.0,91226.0,0.00985602]
[1767511561277,0.06576974,91228.0,91226.0,0.00985602]
[1767511561478,0.05480833,91227.0,91226.0,0.00981104]
[1767511561678,0.05480833,91227.0,91224.0,0.05480982]
[1767511561880,0.01096202,91224.0,91220.0,0.02196]
[1767511562075,0.06577127,91226.0,91224.0,0.000999]
[1767511562281,0.05481033,91224.0,91221.0,0.01096238]
[1767511562725,0.05481033,91224.0,91221.0,0.06577417]
[1767511562904,0.06577235,91224.0,91221.0,0.01096238]
[1767511563130,0.06477335,91224.0,91221.0,0.0657742]
[1767511563336,0.01096202,91224.0,91222.0,0.05481115]
[1767511563526,0.05480839,91227.0,91222.0,0.01096226]
[1767511563726,0.05480839,91227.0,91222.0,0.0606214]
[1767511563922,0.05480839,91227.0,91224.0,0.07572659]
[1767511564124,0.05480896,91226.0,91224.0,0.02091703]
[1767511564404,0.0452384,91226.0,91224.0,0.02091703]
[1767511564606,0.03947253,91226.0,91224.0,0.02091703]
[1767511565448,0.06577005,91227.0,91224.0,0.0757271]
[1767511565785,0.05480898,91226.0,91224.0,0.00995501]
[1767511566125,0.05480911,91226.0,91224.0,0.00995501]
[1767511566261,0.06577005,91227.0,91223.0,0.06577248]
[1767511566465,0.06577005,91227.0,91224.0,0.05481012]
[1767511566718,0.06577005,91227.0,91225.0,0.05480953]
[1767511566916,0.05480923,91226.0,91223.0,0.06577248]
[1767511567096,0.06577101,91226.0,91223.0,0.06577248]
[1767511568383,0.05480965,91225.0,91223.0,0.06577248]
[1767511568578,0.06576946,91228.0,91225.0,0.0109619]
[1767511568801,0.01096154,91228.0,91225.0,0.07572586]
[1767511569000,0.05480827,91229.0,91226.0,0.05480874]
[1767511569402,0.0109607,91235.0,91231.0,0.01096118]
[1767511569577,0.01096082,91234.0,91230.0,0.06062044]
[1767511569792,0.01096082,91234.0,91229.0,0.06576822]
[1767511569990,0.01096106,91232.0,91229.0,0.01096142]
[1767511570516,0.01096106,91232.0,91228.0,0.08772923]
[1767511570664,0.06576575,91233.0,91230.0,0.05480635]
[1767511570864,0.06576575,91233.0,91230.0,0.06576765]
[1767511571318,4.499e-05,91230.0,91228.0,0.02196]
[1767511571496,4.499e-05,91230.0,91228.0,0.07676742]
[1767511571698,0.06576725,91231.0,91228.0,0.07676742]
[1767511572812,0.01096118,91231.0,91229.0,0.05480712]
[1767511573224,0.06576717,91231.0,91228.0,0.08772896]
[1767511574847,0.06576717,91231.0,91228.0,0.03292154]
[1767511575020,0.06576717,91231.0,91228.0,0.02196]
[1767511575228,0.06576717,91231.0,91228.0,0.07676767]
[1767511576905,0.05480713,91229.0,91228.0,0.02191501]
[1767511577509,0.05480659,91230.0,91225.0,0.06577083]
[1767511577510,0.01096166,91227.0,91225.0,0.05480942]
[1767511577717,0.01096166,91227.0,91226.0,0.02196]
[1767511577924,0.05480828,91228.0,91226.0,0.02196]
[1767511578175,0.06576858,91229.0,91226.0,0.07676881]
[1767511578324,0.0548078,91228.0,91226.0,0.07676881]
[1767511578540,0.01096166,91227.0,91223.0,0.06577259]
[1767511578745,0.05481124,91223.0,91221.0,0.02196]
[1767511578997,0.0537435,91223.0,91221.0,0.02196]
[1767511580039,0.05481133,91222.0,91221.0,0.02196]
[1767511580395,0.0558111,91221.0,91217.0,0.065777]
[1767511580649,0.0548121,91221.0,91217.0,0.065777]
[1767511580957,0.04927447,91220.0,91219.0,0.05481314]
[1767511581164,0.06577217,91224.0,91221.0,0.04965914]
[1767511581340,0.06577217,91224.0,91223.0,0.04965914]
[1767511581566,0.01096202,91224.0,91223.0,0.04965914]
[1767511582241,0.05480833,91227.0,91224.0,0.07062116]
[1767511582424,0.06576999,91227.0,91224.0,0.05965914]
[1767511583022,0.05480953,91225.0,91224.0,0.009001]
[1767511583544,0.05481092,91223.0,91220.0,0.06577455]
[1767511583761,0.05481092,91223.0,91219.0,0.04965914]
[1767511583762,0.06577306,91223.0,91219.0,0.10447213]
[1767511584471,0.06577306,91223.0,91220.0,0.05481242]
[1767511584597,0.01096202,91224.0,91220.0,0.11543406]
[1767511584831,0.05481086,91223.0,91220.0,0.11543406]
[1767511585034,0.06577267,91224.0,91221.0,0.05481172]
[1767511585796,0.01096214,91223.0,91218.0,0.01096274]
[1767511586036,0.010999,91221.0,91218.0,0.06577603]
[1767511586209,0.05576617,91221.0,91218.0,0.06577603]
[1767511586425,0.05481215,91221.0,91218.0,0.06577603]
[1767511586756,0.06577453,91221.0,91218.0,0.06577603]
[1767511587424,0.05481254,91220.0,91217.0,0.05481329]
[1767511587594,0.000954,91218.0,91217.0,0.05481329]
[1767511587999,0.06577504,91220.0,91217.0,0.05481329]
[1767511588242,0.06577582,91219.0,91215.0,0.0877381]
[1767511588636,0.06577582,91219.0,91216.0,0.06577748]
[1767511588797,0.06577582,91219.0,91217.0,0.05481424]
[1767511589414,0.01096274,91218.0,91215.0,0.0329231]
[1767511589643,0.000954,91217.0,91216.0,0.05481491]
[1767511590056,0.0657759,91219.0,91217.0,0.05481429]
[1767511590354,0.05481407,91218.0,91215.0,0.08773859]
[1767511590552,0.0657759,91219.0,91215.0,0.08773859]
[1767511590710,0.0109625,91220.0,91218.0,0.05481374]
[1767511590917,0.0109625,91220.0,91218.0,0.05385974]
[1767511591164,0.0657749,91221.0,91218.0,0.05385974]
[1767511591505,0.01096226,91222.0,91218.0,0.01096274]
[1767511591908,0.05481184,91222.0,91218.0,0.06577638]
[1767511592142,0.06577331,91223.0,91222.0,0.000999]
[1767511592348,0.05481146,91222.0,91220.0,0.0109625]
[1767511592782,0.05481146,91222.0,91219.0,0.06577527]
[1767511593335,0.01096202,91224.0,91222.0,0.000999]
[1767511593540,0.04902316,91223.0,91221.0,0.01096238]
[1767511593877,0.04902316,91223.0,91221.0,0.06577386]
[1767511594227,0.05481086,91223.0,91221.0,0.06577386]
[1767511594674,0.06577258,91224.0,91221.0,0.06577386]
[1767511595002,0.06577258,91224.0,91222.0,0.0548113]
[1767511595753,0.06577258,91224.0,91221.0,0.06577386]
[1767511596373,0.05481104,91223.0,91221.0,0.01096238]
[1767511597012,0.06577258,91224.0,91221.0,0.01096238]
[1767511597434,0.01096202,91224.0,91221.0,0.01096238]
[1767511597613,0.05481098,91223.0,91221.0,0.01096238]
[1767511597994,0.06577312,91223.0,91219.0,0.06577575]
[1767511598159,0.05481206,91221.0,91219.0,0.06577575]
[1767511598359,0.06577373,91222.0,91218.0,0.11149154]
[1767511598561,0.01096238,91221.0,91218.0,0.11149149]
[1767511599129,0.0657745,91221.0,91219.0,0.05481308]
[1767511599480,0.0657745,91221.0,91218.0,0.11149149]
[1767511599716,0.010999,91218.0,91215.0,0.0109631]
[1767511599859,0.05481865,91210.0,91207.0,0.04571506]
[1767511600089,0.05481734,91212.0,91208.0,0.03292395]
[1767511600311,0.01096491,91200.0,91197.0,0.000152]
[1767511600487,0.01096491,91200.0,91199.0,0.02196]
[1767511600488,0.06578947,91200.0,91199.0,0.02196]
[1767511600688,0.000999,91199.0,91197.0,1e-08]
[1767511600888,0.000999,91199.0,91180.0,0.23750361]
[1767511600889,0.01096575,91193.0,91189.0,0.04571506]
[1767511601134,0.06579534,91192.0,91189.0,0.04571506]
[1767511601342,0.06579498,91193.0,91190.0,0.05483028]
[1767511601567,0.01096563,91194.0,91191.0,0.05482985]
[1767511602048,0.01096539,91196.0,91193.0,0.01096575]
[1767511602207,0.06579236,91196.0,91193.0,0.06579447]
[1767511602406,0.01096539,91196.0,91193.0,0.06579447]
[1767511603322,0.010999,91193.0,91190.0,0.04571506]
[1767511603496,0.05482937,91192.0,91189.0,0.05483117]
[1767511603701,0.06579524,91192.0,91189.0,0.05483117]
[1767511603912,0.01096587,91192.0,91190.0,0.05483051]
[1767511604131,0.01096563,91194.0,91190.0,0.01096611]
[1767511604344,0.06579181,91197.0,91193.0,0.06579413]
[1767511604515,0.05482696,91196.0,91193.0,0.06579413]
[1767511604716,0.06579181,91197.0,91193.0,0.06579413]
[1767511605181,0.06579093,91198.0,91194.0,0.01096563]
[1767511605579,0.05482638,91197.0,91194.0,0.06579328]
[1767511605725,0.06579093,91198.0,91194.0,0.06579328]
[1767511605931,0.06579037,91199.0,91195.0,0.05482738]
[1767511606152,0.07863865,91198.0,91195.0,0.06579289]
[1767511606347,0.07863865,91198.0,91195.0,0.01096551]
[1767511607259,0.01096431,91205.0,91201.0,0.01096479]
[1767511607591,0.0548235,91202.0,91200.0,0.01096491]
[1767511607790,0.06578817,91202.0,91199.0,0.01096503]
[1767511608021,0.000999,91200.0,91197.0,0.05482631]
[1767511608424,0.01096479,91201.0,91197.0,0.05482631]
[1767511608707,0.01096479,91201.0,91198.0,0.01096515]
[1767511608851,0.01096479,91201.0,91199.0,0.04571506]
[1767511609657,0.01096479,91201.0,91199.0,0.0457983]
[1767511610324,0.06570083,91201.0,91199.0,0.0457983]
[1767511610691,0.05482456,91200.0,91199.0,0.0447993]
[1767511611088,0.01096455,91203.0,91200.0,0.04671406]
[1767511611089,0.06578742,91203.0,91200.0,0.04671406]
[1767511611315,0.03292431,91205.0,91202.0,0.04571506]
[1767511611495,0.03292431,91205.0,91202.0,0.1115027]
[1767511611696,0.02196,91205.0,91204.0,0.05482215]
[1767511612132,0.020961,91205.0,91204.0,0.05482215]
[1767511612289,0.01096407,91207.0,91203.0,0.11150232]
[1767511612495,0.01096407,91207.0,91204.0,0.01096443]
[1767511612832,0.01096407,91207.0,91204.0,0.065786]
[1767511613435,0.0877442,91208.0,91205.0,0.01096431]
[1767511613736,0.000999,91205.0,91204.0,0.05482206]
[1767511614183,0.06578446,91207.0,91204.0,0.05482164]
[1767511614711,0.06578446,91207.0,91204.0,0.05482202]
[1767511614915,0.06578446,91207.0,91204.0,0.05382302]
[1767511615132,0.06578518,91206.0,91203.0,0.01096455]
[1767511615321,0.06578447,91207.0,91204.0,0.06578606]
[1767511615987,0.0657848,91207.0,91204.0,0.06578606]
[1767511616337,0.01096407,91207.0,91204.0,0.06578606]
[1767511616587,0.02196,91208.0,91207.0,0.00089897]
[1767511616791,0.02196,91208.0,91206.0,0.05482049]
[1767511617775,0.07677981,91208.0,91205.0,0.0657858]
[1767511618392,0.05482456,91200.0,91192.0,0.05482818]
[1767511618593,0.05482456,91200.0,91180.0,0.04571506]
[1767511618594,0.05482641,91197.0,91194.0,0.06579365]
[1767511618737,0.01096527,91197.0,91194.0,9.93e-05]
[1767511618953,0.05482756,91195.0,91194.0,9.93e-05]
[1767511619412,0.05482756,91195.0,91194.0,3e-07]
[1767511620257,0.0099997,91194.0,91190.0,0.06579665]
[1767511620455,0.06482815,91194.0,91191.0,0.05482991]
[1767511620907,0.0099997,91194.0,91191.0,0.0657959]
[1767511621067,0.0099997,91194.0,91192.0,0.05482888]
[1767511621571,0.06579307,91195.0,91192.0,0.05482888]
[1767511621979,0.06579307,91195.0,91191.0,0.0657959]
[1767511622556,0.06579307,91195.0,91192.0,0.05482929]
[1767511623777,0.19154763,91200.0,91192.0,0.06579516]
[1767511623999,0.05482624,91198.0,91194.0,0.05482769]
[1767511624199,0.05482624,91198.0,91195.0,0.05482746]
[1767511624949,0.06579139,91198.0,91195.0,0.05482746]
[1767511625179,0.01096503,91199.0,91198.0,0.000998]
[1767511625369,0.03292491,91200.0,91198.0,0.000998]
[1767511625572,0.08774983,91200.0,91197.0,0.05482584]